bitfinex/quotes_ETHUSD_20251107
["timestamp","ask_amount","ask_price","bid_price","bid_amount"]
[1762513628419,0.4962,3279.8,3279.7,3.04905936]
[1762513628629,0.19040001,3279.9,3279.8,3.0489664]
[1762513628813,0.68660001,3279.9,3279.8,3.0489664]
[1762513629003,1.16570001,3279.9,3279.8,3.69931938]
[1762513629217,0.66950001,3279.9,3279.8,3.69931938]
[1762513629420,0.00200001,3279.9,3279.8,4.10482338]
[1762513630628,1.16570001,3279.9,3279.8,4.10482338]
[1762513631029,0.19040001,3279.9,3279.8,4.10482338]
[1762513631334,0.00200001,3279.9,3279.8,4.10482338]
[1762513631495,0.19040001,3279.9,3279.8,4.10482338]
[1762513631700,0.00200001,3279.9,3279.8,4.10482338]
[1762513632412,0.00200001,3279.9,3279.8,1.05585698]
[1762513632612,0.00200001,3279.9,3279.8,4.10482338]
[1762513632814,1.16570001,3279.9,3279.8,0.65035298]
[1762513633034,1.16570001,3279.9,3279.1,3.04961727]
[1762513633207,1.16570001,3279.9,3279.8,0.405504]
[1762513633641,1.16570001,3279.9,3279.8,3.4544704]
[1762513634435,1.16570001,3279.9,3279.8,7.1682704]
[1762513634436,0.00200001,3279.9,3279.8,7.1682704]
[1762513634644,0.00200001,3279.9,3279.8,8.49795919]
[1762513635202,0.00200001,3279.9,3279.8,11.71795919]
[1762513635404,0.65020001,3279.9,3279.8,5.44899279]
[1762513635603,1.13750001,3279.9,3279.8,4.119304]
[1762513635807,1.13750001,3279.9,3279.8,7.1682704]
[1762513636336,0.00200001,3279.9,3279.8,7.1682704]
[1762513637435,0.00200001,3279.9,3279.8,10.3882704]
[1762513638014,0.002,3280.3,3280.2,3.45409859]
[1762513638338,0.002,3280.3,3280.2,4.80230088]
[1762513639024,0.002,3280.3,3280.2,1.72322035]
[1762513639230,0.4636,3280.3,3280.2,4.77181494]
[1762513639742,0.9509,3280.3,3279.9,3.71179999]
[1762513639938,0.4616,3280.0,3279.9,3.71179999]
[1762513640443,0.9489,3280.0,3279.9,3.71179999]
[1762513640645,0.9489,3280.0,3279.9,4.11730399]
[1762513641135,0.9489,3280.0,3279.9,7.16617743]
[1762513641340,0.4616,3280.0,3279.9,8.82469845]
[1762513641538,0.4893,3280.3,3280.1,3.04866769]
[1762513641788,0.0012,3280.3,3280.1,3.04868754]
[1762513641926,0.9489,3280.2,3280.1,3.04868754]
[1762513642120,0.9489,3280.2,3280.1,0.03048687]
[1762513642317,0.9489,3280.2,3279.9,3.71179999]
[1762513642652,0.4616,3280.0,3279.9,4.79338423]
[1762513642813,0.4616,3280.0,3279.9,4.11730399]
[1762513643023,0.9489,3280.0,3279.9,4.11730399]
[1762513643639,0.9489,3280.0,3279.9,3.71179999]
[1762513643919,0.9489,3280.0,3279.5,0.405504]
[1762513644162,0.9489,3280.0,3279.2,6.76130489]
[1762513644163,0.6739,3279.9,3279.6,0.3454789]
[1762513644316,0.6739,3279.9,3279.2,3.71179999]
[1762513644520,0.4616,3279.3,3279.2,3.71179999]
[1762513645023,0.9489,3279.3,3279.2,3.71179999]
[1762513646018,0.9489,3279.3,3279.2,6.76132426]
[1762513646228,0.4616,3279.3,3279.2,7.16682826]
[1762513646435,0.4873,3279.6,3279.5,3.45474931]
[1762513646657,0.9489,3279.6,3279.5,3.45474931]
[1762513647353,0.9489,3279.6,3279.5,0.405504]
[1762513647672,0.152,3279.5,3279.3,0.405504]
[1762513647840,0.6136,3279.3,3279.2,4.73354507]
[1762513648035,0.6136,3279.3,3279.2,5.13904907]
[1762513648242,1.1009,3279.3,3279.2,5.13904907]
[1762513648561,1.1009,3279.3,3279.2,4.11730399]
[1762513650462,1.1009,3279.3,3279.2,3.71179999]
[1762513650664,1.1009,3279.3,3279.2,6.76132426]
[1762513651434,1.1009,3279.3,3279.2,3.71179999]
[1762513654943,0.6136,3279.3,3279.2,3.71179999]
[1762513655143,0.152,3279.3,3279.2,7.13260426]
[1762513656794,0.152,3279.3,3279.2,4.08307999]
[1762513656795,0.6136,3279.3,3279.2,4.08307999]
[1762513656970,1.1009,3279.3,3279.2,3.71179999]
[1762513658379,0.1866,3279.9,3279.2,3.71179999]
[1762513658380,0.1866,3279.9,3279.3,0.405504]
[1762513658561,0.4873,3279.8,3279.3,0.405504]
[1762513658880,0.4873,3279.8,3279.3,3.45493528]
[1762513658881,0.4616,3279.4,3279.3,3.45493528]
[1762513659082,0.4616,3279.4,3279.2,3.71179999]
[1762513659380,0.9614,3279.3,3279.2,4.08307999]
[1762513661954,0.9614,3279.3,3279.2,3.71179999]
[1762513663290,0.9614,3279.3,3279.1,0.001]
[1762513663488,0.9619,3279.2,3279.1,0.001]
[1762513663689,0.9619,3279.2,3278.7,0.001]
[1762513663888,0.4621,3278.6,3277.9,3.05172666]
[1762513664054,0.4621,3278.3,3277.9,0.001]
[1762513664565,0.927,3278.3,3277.9,0.001]
[1762513665493,0.927,3278.3,3277.9,3.05168241]
[1762513666083,0.927,3278.3,3277.9,0.001]
[1762513666990,0.4613,3278.3,3278.0,3.05063704]
[1762513667170,0.4613,3278.3,3277.9,0.001]
[1762513667367,0.927,3278.3,3277.9,0.001]
[1762513667792,0.4657,3278.8,3278.1,0.410504]
[1762513667993,0.1969,3278.9,3278.3,4.32164838]
[1762513668203,0.4657,3279.2,3278.8,3.0498963]
[1762513668495,0.4657,3279.2,3278.5,0.405504]
[1762513668683,0.4657,3279.2,3278.9,3.04974661]
[1762513668882,0.4657,3279.2,3279.0,0.0304971]
[1762513669089,0.4657,3279.6,3278.9,0.405504]
[1762513669286,0.4657,3279.6,3278.9,0.75104313]
[1762513669600,0.4657,3279.6,3278.9,3.80081995]
[1762513669775,0.4657,3279.6,3279.0,3.04970342]
[1762513669976,0.4657,3279.6,3279.1,3.04961072]
[1762513670195,0.4657,3279.6,3279.1,0.405504]
[1762513670402,0.4657,3279.6,3279.2,3.39503938]
[1762513670559,0.4657,3279.6,3279.2,0.34552143]
[1762513671067,0.4657,3279.6,3279.1,3.45509856]
[1762513671068,0.152,3279.2,3279.1,3.45509856]
[1762513671575,0.6321,3279.2,3279.1,0.405504]
[1762513672277,0.152,3279.2,3279.1,3.45512127]
[1762513673000,0.152,3279.2,3279.1,0.405504]
[1762513673204,0.6321,3279.2,3279.1,0.405504]
[1762513673390,0.6321,3279.2,3279.1,0.7510329]
[1762513673703,1.0978,3279.2,3279.1,0.405504]
[1762513674067,0.6321,3279.2,3279.1,0.405504]
[1762513674469,1.0978,3279.2,3279.1,0.405504]
[1762513675370,0.6321,3279.2,3279.1,0.405504]
[1762513679197,0.6341,3279.2,3279.1,0.405504]
[1762513680594,1.0998,3279.2,3279.1,0.405504]
[1762513681707,0.9478,3279.2,3278.2,0.001]
[1762513681911,0.4801,3278.4,3278.2,0.001]
[1762513682273,0.9458,3278.3,3278.2,0.001]
[1762513686508,0.1929,3278.5,3278.2,0.03150454]
[1762513686832,0.002,3279.2,3278.3,0.30869911]
[1762513686833,0.1929,3279.0,3278.3,0.30869911]
[1762513687020,0.1929,3279.0,3278.3,0.03050361]
[1762513687302,0.0012,3279.2,3278.3,3.08083909]
[1762513687508,0.0012,3279.2,3278.6,3.05000743]
[1762513687691,0.4669,3279.2,3278.2,0.001]
[1762513689196,0.4801,3278.3,3278.2,0.001]
[1762513689379,0.673,3278.3,3278.2,0.001]
[1762513689976,1.1387,3278.3,3278.2,0.001]
[1762513690892,0.673,3278.3,3278.2,0.001]
[1762513691318,0.1929,3278.6,3278.2,0.03150454]
[1762513691486,0.1929,3278.6,3278.2,0.001]
[1762513691683,0.1929,3278.6,3278.2,0.30666148]
[1762513691884,0.6586,3278.6,3278.2,0.001]
[1762513692101,0.4801,3278.3,3278.2,0.001]
[1762513692686,0.9458,3278.3,3278.2,0.001]
[1762513693032,0.1929,3278.6,3278.2,0.001]
[1762513693237,0.6586,3278.9,3278.2,0.001]
[1762513693388,0.6586,3278.9,3278.3,6.76208972]
[1762513693587,0.6586,3278.9,3278.4,3.08071156]
[1762513693888,0.0012,3279.2,3278.5,3.71179999]
[1762513694215,0.152,3278.6,3278.5,3.05011614]
[1762513694524,0.152,3278.6,3278.4,3.05026498]
[1762513694726,0.152,3278.6,3278.5,4.04838188]
[1762513694936,0.152,3278.6,3278.5,0.9982065]
[1762513695240,0.152,3278.6,3278.3,3.71179999]
[1762513695241,0.152,3278.5,3278.3,3.71179999]
[1762513695424,0.152,3278.5,3278.2,0.30666384]
[1762513695425,0.9502,3278.6,3278.4,3.71179999]
[1762513695622,0.4837,3278.6,3278.4,3.71179999]
[1762513696337,0.186,3278.9,3278.4,3.71179999]
[1762513696504,0.186,3278.9,3278.5,0.67630845]
[1762513696708,0.0012,3279.2,3278.5,0.67630845]
[1762513696906,0.4849,3279.2,3278.5,4.38810844]
[1762513697223,0.6525,3278.6,3278.5,3.71179999]
[1762513697513,0.152,3278.5,3278.4,3.71179999]
[1762513697715,0.4665,3278.4,3278.3,3.71279999]
[1762513698260,0.9502,3278.4,3278.3,3.71279999]
[1762513699162,0.9502,3278.4,3278.3,0.001]
[1762513701534,0.9502,3278.4,3278.2,0.001]
[1762513701840,0.98266067,3278.3,3278.2,0.001]
[1762513702861,0.9502,3278.3,3278.2,0.001]
[1762513706165,0.4665,3278.3,3278.2,0.001]
[1762513707155,0.186,3278.6,3278.2,0.001]
[1762513707362,0.4665,3278.3,3278.2,0.001]
[1762513707969,0.4837,3278.5,3278.2,0.001]
[1762513708273,0.186,3278.6,3278.2,0.001]
[1762513708448,0.6697,3278.6,3278.2,0.001]
[1762513710272,0.6689,3278.6,3278.2,0.001]
[1762513711272,0.1852,3278.6,3278.2,0.001]
[1762513711470,0.4837,3278.5,3278.2,0.001]
[1762513711679,0.1852,3278.6,3278.2,0.001]
[1762513712550,0.6689,3278.6,3278.2,0.001]
[1762513712871,0.186,3279.0,3278.3,3.05030252]
[1762513713044,0.0012,3279.2,3278.3,3.05030252]
[1762513713045,0.002,3278.6,3278.4,0.33868339]
[1762513713263,0.002,3278.6,3278.4,3.35843526]
[1762513713462,0.002,3278.6,3278.5,3.05017538]
[1762513715087,0.002,3278.6,3278.5,3.08067713]
[1762513715283,0.002,3278.6,3278.5,3.72459006]
[1762513717549,0.002,3278.6,3278.5,3.69408831]
[1762513717754,0.002,3278.6,3278.5,0.64391293]
[1762513717969,0.152,3278.5,3278.4,3.05026165]
[1762513720853,0.002,3278.6,3278.5,3.05017538]
[1762513722489,0.002,3278.6,3278.2,0.153]
[1762513722690,0.002,3278.6,3278.5,3.05017538]
[1762513724293,0.4739,3278.6,3278.2,0.001]
[1762513724515,0.4739,3278.6,3278.2,0.30674856]
[1762513724516,0.152,3278.3,3278.2,0.30674856]
[1762513724712,0.152,3278.3,3278.2,0.001]
[1762513726426,0.152,3278.3,3278.2,3.71279999]
[1762513726626,0.152,3278.3,3278.2,6.7632545]
[1762513727622,0.002,3278.6,3278.4,3.05019627]
[1762513727787,0.002,3278.6,3278.3,3.05033599]
[1762513727982,0.002,3278.6,3278.4,0.6763136]
[1762513729025,0.152,3278.4,3278.2,3.71279999]
[1762513729379,0.4961,3278.6,3278.2,3.71279999]
[1762513729623,0.002,3278.6,3278.2,3.71279999]
[1762513730693,0.4961,3278.6,3278.2,3.71279999]
[1762513731109,0.4719,3278.3,3278.2,3.71279999]
[1762513731299,0.4719,3278.3,3278.2,0.001]
[1762513731497,0.966,3278.3,3278.2,0.001]
[1762513731918,0.152,3278.2,3277.9,0.001]
[1762513732124,0.152,3277.9,3276.4,3.71179999]
[1762513732306,0.4719,3277.7,3276.5,3.05198481]
[1762513732511,0.4719,3277.7,3276.4,3.05211608]
[1762513732706,0.966,3277.7,3276.4,3.05211608]
[1762513733030,0.9652,3277.7,3276.7,3.05179644]
[1762513733323,0.9652,3277.7,3276.4,0.0099]
[1762513733523,0.9652,3277.7,3276.2,3.71179999]
[1762513733730,0.9652,3277.7,3276.3,3.05214126]
[1762513734027,0.9652,3277.7,3276.4,3.05209049]
[1762513734325,0.9652,3277.7,3276.2,3.71179999]
[1762513734644,0.9652,3277.7,3276.6,3.05190844]
[1762513734820,0.9652,3277.7,3276.3,3.05221057]
[1762513735139,0.9652,3277.7,3276.6,3.05193524]
[1762513735756,0.9652,3277.7,3276.3,3.06211345]
[1762513736031,0.9652,3277.7,3276.2,3.05225739]
[1762513736194,0.9652,3277.7,3276.4,3.05210601]
[1762513736516,0.9652,3277.7,3276.5,3.05201951]
[1762513737113,0.9652,3277.7,3276.4,0.0099]
[1762513737333,0.9652,3277.7,3276.9,3.05161328]
[1762513737622,0.9652,3277.7,3276.3,3.05221794]
[1762513737623,0.152,3277.6,3276.3,3.05221015]
[1762513737800,0.4719,3277.4,3276.4,3.05212929]
[1762513738001,0.4719,3277.4,3276.5,0.0109]
[1762513738235,0.4719,3277.4,3276.7,3.05178118]
[1762513738428,0.966,3277.4,3276.8,3.05174337]
[1762513738825,0.4941,3277.8,3276.9,3.05164769]
[1762513739015,0.4941,3277.8,3277.0,3.05155789]
[1762513739215,0.1988,3277.9,3276.9,0.0109]
[1762513739547,0.1988,3277.9,3277.3,0.03151292]
[1762513739747,0.1988,3278.3,3277.8,0.0109]
[1762513739911,0.1988,3278.3,3277.7,3.05090732]
[1762513740243,0.1988,3278.3,3277.6,3.05097975]
[1762513740442,0.152,3277.5,3277.4,0.30828755]
[1762513740648,0.152,3277.5,3277.4,3.05119912]
[1762513740811,0.152,3277.5,3277.4,0.0109]
[1762513741416,0.152,3277.5,3277.3,0.001]
[1762513741652,0.1988,3278.3,3277.3,0.001]
[1762513741653,0.966,3277.4,3277.3,0.001]
[1762513741817,0.4719,3277.4,3277.3,0.001]
[1762513742020,0.4941,3277.8,3277.3,0.001]
[1762513743017,0.4941,3277.8,3277.3,0.03151292]
[1762513743295,0.4941,3278.2,3277.3,0.03151292]
[1762513743471,0.4941,3278.2,3277.3,3.3915232]
[1762513743617,0.1988,3278.3,3277.3,0.34029725]
[1762513743817,0.1988,3278.3,3277.4,3.08169748]
[1762513744117,0.002,3278.6,3277.4,0.04141199]
[1762513744318,0.002,3278.6,3278.2,0.0109]
[1762513744556,0.002,3278.6,3278.5,0.0109]
[1762513744734,0.002,3278.6,3278.2,3.05045093]
[1762513744735,0.002,3278.6,3278.2,3.05044746]
[1762513744920,0.002,3278.6,3278.3,0.30504475]
[1762513745116,0.002,3278.6,3278.5,0.0109]
[1762513745365,0.002,3278.6,3278.5,3.06107538]
[1762513745729,0.002,3278.6,3278.5,0.0109]
[1762513747484,0.002,3278.6,3278.5,3.07197538]
[1762513747689,0.002,3278.6,3278.5,3.7147038]
[1762513747982,0.002,3278.6,3278.5,3.7038038]
[1762513748478,0.002,3278.6,3278.5,0.62312667]
[1762513748681,0.002,3278.6,3278.5,0.0109]
[1762513749883,0.002,3278.6,3278.5,0.416404]
[1762513751080,0.002,3278.6,3278.5,0.405504]
[1762513751280,0.4739,3278.6,3278.0,3.05054818]
[1762513751452,0.4739,3278.6,3278.1,0.405504]
[1762513751650,0.4739,3278.6,3278.3,0.405504]
[1762513751855,0.4739,3278.6,3278.1,0.405504]
[1762513752061,0.152,3278.2,3278.1,0.405504]
[1762513752262,0.152,3278.2,3277.7,0.0109]
[1762513752450,0.152,3278.0,3277.8,3.05082677]
[1762513752651,0.4961,3278.6,3278.0,0.405504]
[1762513752871,0.152,3277.7,3277.6,0.001]
[1762513753070,0.4719,3278.1,3277.6,3.69279999]
[1762513753269,0.4941,3278.5,3277.6,3.70369999]
[1762513753486,0.4941,3278.5,3277.7,4.09730399]
[1762513754185,0.002,3278.6,3277.7,4.81223706]
[1762513754479,0.002,3278.6,3277.9,3.4562349]
[1762513754721,0.4655,3278.6,3277.8,3.4562719]
[1762513754919,0.4655,3278.6,3277.8,0.405504]
[1762513756026,0.4647,3278.6,3277.8,0.405504]
[1762513756991,0.4647,3278.6,3277.8,0.92065734]
[1762513757633,0.0012,3278.6,3277.9,3.69179999]
[1762513757820,0.0012,3278.6,3277.9,6.74250397]
[1762513758125,0.4647,3278.6,3277.9,3.69179999]
[1762513758537,0.4647,3278.6,3278.0,3.69179999]
[1762513758538,0.0012,3278.6,3278.0,3.69179999]
[1762513759107,0.0012,3278.6,3278.2,3.45588823]
[1762513759430,0.0012,3278.6,3278.3,0.03050361]
[1762513759631,0.0012,3278.6,3278.4,3.69179999]
[1762513760926,0.0012,3278.6,3278.5,0.03050175]
[1762513761107,0.0012,3278.6,3278.5,0.67725969]
[1762513761910,0.0012,3278.6,3278.5,3.73833507]
[1762513762150,0.0012,3278.6,3278.5,0.68815969]
[1762513762554,0.0012,3278.6,3278.5,4.18524082]
[1762513762740,0.0012,3278.6,3278.5,7.84653906]
[1762513763056,0.0012,3279.2,3278.5,7.84653906]
[1762513763057,0.0012,3279.2,3279.1,6.67512127]
[1762513763261,0.007,3279.9,3279.2,6.67502827]
[1762513763262,0.152,3279.7,3279.2,6.67502827]
[1762513763437,0.152,3279.7,3279.2,7.95654027]
[1762513763619,0.007,3279.9,3279.2,7.95654027]
[1762513763825,0.152,3279.5,3279.2,7.95654027]
[1762513764450,0.1958,3279.9,3279.2,0.416404]
[1762513764753,0.1958,3279.9,3278.6,1.259712]
[1762513764754,0.152,3279.2,3279.0,0.405504]
[1762513765054,0.4635,3279.7,3278.7,3.04995569]
[1762513765253,0.4635,3279.7,3278.8,0.30499557]
[1762513765454,0.4635,3279.7,3278.7,3.04998351]
[1762513765758,0.4635,3279.7,3278.8,0.405504]
[1762513766258,0.002,3279.0,3278.9,0.405504]
[1762513766754,0.152,3278.9,3278.8,3.4554003]
[1762513766957,0.152,3278.9,3278.8,0.405504]
[1762513767136,0.152,3278.9,3278.8,3.81184327]
[1762513768736,0.152,3278.9,3278.8,0.76194697]
[1762513769333,0.002,3279.0,3278.8,5.07155527]
[1762513769562,0.002,3279.0,3278.9,0.405504]
[1762513770060,0.9311,3279.0,3278.5,0.67825969]
[1762513770235,0.4656,3278.6,3278.5,0.001]
[1762513770732,0.96156067,3278.6,3278.1,0.001]
[1762513770932,0.4656,3278.2,3277.6,0.001]
[1762513771132,0.4656,3277.9,3277.6,0.001]
[1762513771358,0.03246067,3278.1,3277.6,0.001]
[1762513771359,0.4656,3277.7,3277.6,0.001]
[1762513771954,0.9291,3277.7,3277.6,0.001]
[1762513776369,0.4656,3277.7,3277.6,0.001]
[1762513776661,0.9291,3277.7,3277.6,0.001]
[1762513778683,0.9283,3277.7,3277.6,0.001]
[1762513781953,0.9283,3277.7,3277.3,0.001]
[1762513782150,0.9283,3277.7,3276.1,0.005]
[1762513782151,0.4827,3277.2,3276.1,0.005]
[1762513782362,0.6451,3276.2,3276.1,0.005]
[1762513782552,0.6451,3276.2,3274.1,3.0542556]
[1762513782553,0.6451,3276.2,3274.7,3.05363722]
[1762513782783,0.6714,3275.2,3274.6,3.05379213]
[1762513782960,0.6714,3275.2,3274.4,3.0539891]
[1762513783168,0.6714,3275.2,3274.3,3.054011]
[1762513783169,1.1518,3275.2,3274.3,3.054011]
[1762513783354,1.1518,3275.2,3274.1,3.05421567]
[1762513783549,1.1518,3275.2,3274.2,3.05418024]
[1762513784350,1.1518,3275.2,3273.7,3.05458743]
[1762513784556,1.1518,3275.2,3274.5,3.05382597]
[1762513784783,1.1518,3275.2,3274.6,3.05377396]
[1762513784983,0.1976,3275.5,3274.4,0.405504]
[1762513785156,0.1976,3275.5,3274.7,3.05363724]
[1762513785351,0.1624,3276.2,3274.7,3.05365475]
[1762513785352,0.4706,3275.9,3274.7,3.05365475]
[1762513785654,0.633,3276.2,3275.1,0.410504]
[1762513785989,0.633,3276.2,3275.3,3.0530857]
[1762513786155,0.633,3276.2,3275.1,0.005]
[1762513786156,0.4706,3276.1,3275.5,3.05288501]
[1762513786484,0.4706,3276.1,3275.5,3.05294805]
[1762513786888,0.4706,3276.1,3275.6,3.05280419]
[1762513787454,0.1624,3276.2,3275.5,0.405504]
[1762513787659,0.1624,3276.2,3275.7,3.05273331]
[1762513787861,0.1624,3276.2,3275.8,0.30527333]
[1762513789490,0.633,3276.2,3275.8,0.30527333]
[1762513789790,0.633,3276.2,3275.3,0.405504]
[1762513790089,0.4706,3276.1,3275.3,0.405504]
[1762513790587,0.4594,3275.4,3275.1,0.005]
[1762513790786,0.4706,3276.1,3275.1,0.005]
[1762513790787,0.4594,3275.2,3275.1,0.005]
[1762513791165,0.93,3275.2,3275.1,0.005]
[1762513791576,0.47899029,3275.9,3275.1,0.005]
[1762513791778,0.4594,3275.2,3275.1,0.005]
[1762513792200,0.93,3275.2,3275.1,0.005]
[1762513792401,0.44298819,3275.2,3275.1,0.005]
[1762513792566,0.93,3275.2,3275.1,0.005]
[1762513792992,0.4706,3275.6,3275.1,0.005]
[1762513793196,0.93,3275.2,3275.1,0.005]
[1762513793597,0.4594,3275.2,3275.1,0.005]
[1762513793894,0.93,3275.2,3275.1,0.005]
[1762513794797,0.152,3275.1,3273.9,3.05443816]
[1762513795000,0.4706,3275.1,3274.0,0.30544382]
[1762513795201,0.152,3273.8,3273.7,3.05464764]
[1762513795493,0.152,3273.8,3273.7,3.46015164]
[1762513795693,0.152,3273.8,3273.7,3.49085164]
[1762513796296,0.1976,3274.9,3273.8,0.405504]
[1762513796596,0.6682,3274.9,3274.0,3.45986498]
[1762513796795,0.6682,3274.9,3274.1,0.7151665]
[1762513796998,0.4706,3274.8,3274.1,0.7151665]
[1762513800323,0.4706,3274.8,3272.9,3.05534984]
[1762513800324,0.4594,3274.2,3272.9,3.05534984]
[1762513800483,0.4706,3274.8,3272.5,3.69179999]
[1762513800484,0.4594,3274.1,3272.5,6.91179999]
[1762513800801,0.4706,3274.8,3273.3,4.72014838]
[1762513801003,0.6682,3274.9,3273.5,0.405504]
[1762513801191,0.4706,3275.4,3274.0,0.405504]
[1762513801390,0.1968,3275.2,3274.5,3.05389589]
[1762513801607,0.1968,3275.2,3274.6,0.03053808]
[1762513801805,0.1968,3275.2,3274.7,0.3084434]
[1762513802179,0.657,3274.8,3274.3,0.405504]
[1762513802384,0.6674,3275.2,3274.0,0.001]
[1762513802692,0.4706,3275.1,3274.0,0.001]
[1762513802884,0.1968,3275.2,3274.2,3.05418117]
[1762513803082,0.6682,3275.8,3275.1,0.0315]
[1762513803437,0.6682,3275.8,3275.1,0.33999602]
[1762513803615,0.6682,3275.8,3275.1,0.0315]
[1762513803814,0.002,3276.1,3275.1,0.0315]
[1762513804014,0.002,3276.1,3275.1,3.08481999]
[1762513804177,0.4706,3276.0,3275.1,0.0315]
[1762513804382,0.4706,3276.0,3274.7,0.0315]
[1762513804603,0.657,3275.2,3274.4,0.405504]
[1762513804807,0.657,3275.2,3274.5,0.34595607]
[1762513805198,0.657,3275.2,3274.3,0.405504]
[1762513805396,1.1276,3275.2,3274.3,0.405504]
[1762513805599,1.1276,3275.2,3274.2,3.4596792]
[1762513805804,1.1276,3275.2,3274.4,0.405504]
[1762513806209,1.1276,3275.2,3274.3,3.05406542]
[1762513806415,1.1276,3275.2,3274.4,0.75146094]
[1762513807119,0.152,3274.4,3274.2,0.405504]
[1762513807322,0.657,3275.2,3274.4,0.405504]
[1762513807626,0.6682,3275.2,3274.5,3.69179999]
[1762513808011,0.4706,3275.1,3274.5,3.69179999]
[1762513809504,0.002,3276.1,3274.5,4.06097999]
[1762513809505,0.1976,3275.5,3274.5,4.06097999]
[1762513809713,0.1976,3275.5,3274.6,3.72233807]
[1762513809910,0.1976,3275.5,3274.7,7.1509625]
[1762513810106,0.1976,3275.5,3274.7,6.74547217]
[1762513810308,0.4706,3275.9,3274.8,0.405504]
[1762513810522,0.1976,3275.8,3275.0,3.05343211]
[1762513810700,0.1976,3275.8,3275.0,3.69179999]
[1762513811199,0.6682,3275.8,3275.0,3.69179999]
[1762513811702,0.6682,3275.8,3275.0,6.74521636]
[1762513811703,0.1976,3275.8,3275.0,6.74521636]
[1762513811903,0.1976,3275.8,3275.0,3.69179999]
[1762513812103,0.1976,3275.8,3275.1,0.7491853]
[1762513812300,0.002,3276.1,3275.2,0.405504]
[1762513812506,0.002,3276.1,3275.4,0.405504]
[1762513812810,0.002,3276.1,3276.0,0.0315]
[1762513813208,0.002,3276.1,3276.0,3.52100705]
[1762513813537,0.002,3276.1,3276.0,1.09436558]
[1762513813735,0.002,3276.1,3276.0,0.0315]
[1762513814301,0.002,3276.1,3275.1,3.83402088]
[1762513814302,0.4853,3276.1,3275.1,3.83402088]
[1762513814497,0.4853,3276.1,3275.2,0.405504]
[1762513814498,0.002,3276.1,3275.2,0.405504]
[1762513814697,0.002,3276.1,3275.3,0.405504]
[1762513814937,0.002,3276.1,3275.5,3.05289885]
[1762513816130,0.002,3276.1,3275.6,3.05286704]
[1762513816331,0.002,3276.1,3275.6,3.05279683]
[1762513816536,0.002,3276.1,3275.7,0.61057658]
[1762513816832,0.002,3276.1,3275.7,3.66334023]
[1762513817526,0.002,3276.1,3275.7,0.61057658]
[1762513818309,0.002,3276.1,3274.9,5.08861848]
[1762513818310,0.002,3276.1,3276.0,0.0315]
[1762513819320,0.002,3276.1,3275.8,0.405504]
[1762513819321,0.152,3276.0,3275.8,0.405504]
[1762513819638,0.002,3276.1,3275.5,3.0529476]
[1762513819639,0.002,3276.1,3275.5,0.405504]
[1762513819837,0.4833,3275.6,3275.3,3.69179999]
[1762513820026,0.4833,3275.6,3274.7,5.12011848]
[1762513820027,0.002,3276.1,3275.5,0.0315]
[1762513820330,0.002,3276.1,3275.5,0.405504]
[1762513820533,0.152,3275.5,3274.9,1.291212]
[1762513820842,0.152,3274.9,3274.7,5.08861848]
[1762513821137,0.1844,3275.4,3274.7,3.05371048]
[1762513821340,0.1844,3275.4,3274.8,0.0315]
[1762513822047,0.1844,3275.6,3274.8,0.0315]
[1762513822219,0.1844,3275.6,3274.4,0.001]
[1762513822220,0.1844,3275.9,3275.3,0.0315]
[1762513822423,0.002,3276.1,3275.3,3.08463549]
[1762513822714,0.002,3276.1,3275.4,3.05305578]
[1762513822914,0.002,3276.1,3275.3,0.67679623]
[1762513823117,0.002,3276.1,3275.3,3.11610331]
[1762513823322,0.002,3276.1,3276.0,0.0315]
[1762513823640,0.002,3276.1,3276.0,3.69179999]
[1762513823805,0.9841,3276.1,3276.0,3.69179999]
[1762513824214,0.9833,3276.1,3276.0,3.69179999]
[1762513826144,0.4845,3276.1,3276.0,3.69179999]
[1762513827719,0.9833,3276.1,3276.0,3.69179999]
[1762513828045,0.9833,3276.1,3275.3,3.69179999]
[1762513828247,0.9833,3276.1,3274.9,9.5334952]
[1762513828248,0.53126067,3276.0,3275.0,3.69179999]
[1762513828545,0.4988,3276.0,3275.1,0.67452952]
[1762513828711,0.1844,3275.9,3275.0,3.69179999]
[1762513828912,0.1844,3275.9,3275.1,6.74509192]
[1762513829144,0.1844,3275.9,3275.3,3.05309948]
[1762513829731,0.0012,3276.1,3275.4,3.69179999]
[1762513829929,0.0012,3276.1,3275.5,6.74475479]
[1762513830128,0.0012,3276.1,3275.6,4.04929241]
[1762513830336,0.0012,3276.1,3276.0,0.0315]
[1762513830662,0.0012,3276.1,3275.8,3.05267976]
[1762513830865,0.0012,3276.1,3275.7,3.05274105]
[1762513831061,0.0012,3276.1,3275.8,3.0526633]
[1762513831262,0.0012,3276.1,3276.0,0.0315]
[1762513831454,0.0012,3276.1,3276.0,3.08400305]
[1762513831641,0.0012,3276.1,3276.0,3.11550305]
[1762513831843,0.9833,3276.1,3274.1,6.74601827]
[1762513832036,0.1844,3275.7,3274.5,0.0315]
[1762513832435,0.0012,3276.1,3274.5,0.0315]
[1762513832629,0.0012,3276.1,3274.7,0.405504]
[1762513832835,0.5,3276.1,3275.1,3.05327917]
[1762513833065,0.5,3276.1,3275.2,0.30532792]
[1762513833233,0.5,3276.1,3274.7,6.27363861]
[1762513833470,0.5,3276.1,3274.7,3.22]
[1762513833733,0.03246067,3276.0,3274.8,0.405504]
[1762513833933,0.5,3276.1,3274.8,0.405504]
[1762513834134,0.4988,3276.0,3274.8,3.45912236]
[1762513834361,0.4988,3276.0,3274.9,0.34591224]
[1762513834582,0.4988,3276.0,3274.9,3.39938966]